Cogmind - Beta 10.1 @@@ ROGUE MODE // 2020.09.28 @ 16:02:45 Player: Cracklepappy Result: Destroyed by G-47 Trooper with Particle Gun Performance ------------- Evolutions (2) 1000 Regions Visited (9) 1800 Robots Destroyed (209) 1045 Value Destroyed (5934) 5934 Prototype IDs (42) 840 Alien Tech Used (0) 0 Bonus (1535) 1535 TOTAL SCORE: 12154 Bonus ------- High Alert Combat Kills 453 Follower Combat Kills 82 Entered Garrisons 200 Used RIF Installer 500 Aligned with FarCom 300 Cogmind --------- Core Integrity 0/550 Matter 172/300 Energy 290/290 System Corruption 0% Temperature Cool (390) Movement Walking (280) Ox5 Location -8/Materials Parts ------- > --- POWER (1) -------- Reinforced Deuterium Engine > --- PROPULSION (4) --- Titanium Leg > --- UTILITY (4) ------ Large Storage Unit Large Storage Unit Large Storage Unit Large Storage Unit > --- WEAPON (2) ------- Enhanced Autogun Assault Cannon > --- INVENTORY (28) --- Reinforced Fission Core Improved Flight Unit Improved Flight Unit Improved Flight Unit Flying Fortress v7 Experimental Heat Sink Superbattery (2000) High-capacity Matter Pod (0) Gravity Neutralizing Apparatus Gravity Neutralizing Apparatus Experimental Sensor Array Advanced Terrain Scanner Advanced Core Analyzer Improved Propulsion Shielding Hardened Medium Armor Plating Hacking Suite Relay Coupler [NC] (31) Improved EM Pulse Cannon Improved EM Pulse Cannon Gauss Rifle 8R-AWN's Boregun Heavy Missile Launcher Plasma Cutter Scythe Deploy-a-Sentry Peak State ------------ > --- POWER ------------ Light Deuterium Engine > --- PROPULSION ------- Light Treads Light Treads > --- UTILITY ---------- Humpback 8R-AWN's Armor/EX > --- WEAPON ----------- AWS/Gauss > --- INVENTORY -------- Reinforced Fission Core Light Treads Flying Fortress v7 Experimental Heat Sink Superbattery High-capacity Matter Pod High-capacity Matter Pod Gravity Neutralizing Apparatus Gravity Neutralizing Apparatus Experimental Targeting Computer Improved Target Analyzer Advanced Core Analyzer Advanced Weapon Cycler Autogun 8R-AWN's Boregun Assault Cannon Assault Cannon Rocket Launcher Plasma Cutter Makeshift Spear Deploy-a-Sentry [Rating: 56] Favorites ----------- Power Light Deuterium Engine Engine Light Deuterium Engine Power Core Light Nuclear Core Propulsion Light Treads Treads Light Treads Leg Improved Carbon-fiber Leg Wheel Compact Wheel Flight Unit Improved Flight Unit Utility Humpback Device Disposable Heat Sink Storage Humpback Protection Light Armor Plating Weapon Assault Cannon Energy Gun Medium Laser Energy Cannon Beam Cannon Ballistic Gun Autogun Ballistic Cannon Assault Cannon Launcher Grenade Launcher Special Weapon Plasma Cutter Slashing Weapon Scythe Build | -11 -10 -10 -9 -9 -9 -8 -8 -8 -8 ------- Run | Scr Mat Min Mat Min Exi Min Mat Gar Mat Slots Evolved 4 | . . . 2 . . . 2 . . Power . | . . . . . . . . . . Propulsion 2 | . . . . . . . 2 . . Utility 2 | . . . 2 . . . . . . Weapon . | . . . . . . . . . . Parts Attached 144 | 7 13 1 16 10 25 6 11 40 15 Power 13 | 1 2 . 2 1 1 . 1 5 . Engine 12 | 1 2 . 2 1 1 . 1 4 . Core 1 | . . . . . . . . 1 . Reactor . | . . . . . . . . . . Propulsion 36 | 2 4 1 5 . 4 . 7 11 2 Treads 21 | 1 4 1 4 . 3 . 7 1 . Leg 13 | . . . . . 1 . . 10 2 Wheel 1 | 1 . . . . . . . . . Hover . | . . . . . . . . . . Flight 1 | . . . 1 . . . . . . Utility 31 | 2 3 . 4 1 14 . . 2 5 Device 4 | . . . 1 . 3 . . . . Storage 21 | 2 3 . 3 1 5 . . 2 5 Processor . | . . . . . . . . . . Hackware . | . . . . . . . . . . Protection 6 | . . . . . 6 . . . . Artifact . | . . . . . . . . . . Weapon 64 | 2 4 . 5 8 6 6 3 22 8 Energy Gun 3 | . 1 . . . . . . 2 . Energy Cannon 1 | . 1 . . . . . . . . Ballistic Gun 28 | 2 . . 1 3 4 . 1 13 4 Ballistic Cannon 12 | . . . 3 2 . 4 1 . 2 Launcher 16 | . 2 . 1 3 1 2 1 4 2 Special Weapon 1 | . . . . . 1 . . . . Impact Weapon . | . . . . . . . . . . Slashing Weapon 3 | . . . . . . . . 3 . Piercing Weapon . | . . . . . . . . . . Special Melee Weapon . | . . . . . . . . . . Unidentified Prototypes 8 | . . . 1 . 6 . . . 1 Parts Lost 34 | . 4 . 3 3 4 . 4 12 4 Power 6 | . 1 . 1 1 . . 1 2 . Propulsion 14 | . 1 . 1 . 2 . 1 6 3 Utility 2 | . . . . . 2 . . . . Weapon 12 | . 2 . 1 2 . . 2 4 1 Highest Loss Streak 3 | . 2 . 1 1 3 . 2 3 3 Average Slot Usage (%) 84 | . 96 98 97 99 74 74 79 77 89 Engine 10 | . 13 14 10 11 11 11 8 6 9 Treads 21 | . 24 26 21 22 21 22 34 15 . Leg 5 | . . . . . . . . 18 35 Device 1 | . . . 9 1 . . . . . Storage 23 | . 28 28 32 42 17 22 18 18 26 Protection 2 | . . . . . 7 . . . . Energy Cannon 1 | . 1 14 . . . . . . . Ballistic Gun 10 | . 20 . . 13 10 2 5 15 11 Ballistic Cannon 6 | . . . 19 5 6 16 12 . 6 Launcher 1 | . 2 14 . 2 . . . . . Naked Turns . | . . . . . . . . . . Heaviest Build 186 | 14 43 43 80 88 175 174 177 183 186 Greatest Support 83 | 20 40 40 40 40 40 40 83 83 69 Greatest Overweight (x) 8 | . 2 2 2 2 8 4 2 4 2 Average Overweight (x) 1 | . . 1 1 1 2 4 2 2 1 Largest Inventory Capacity 44 | 8 16 16 24 28 44 44 44 44 44 Average Capacity 31 | 6 11 16 20 27 31 44 44 43 35 Most Carried 44 | 8 16 16 24 28 44 44 44 44 44 Average Carried 29 | 4 11 15 19 26 25 42 43 42 35 Final Capacity 44 | 8 16 16 24 28 44 44 44 44 28 Final Carried 44 | 8 16 16 23 28 44 42 44 42 28 Class Distribution -------------------- 81% | Hauler-Mutant 18% | Mutant Dominant Class ---------------- Mutant | -10/Materials Mutant | -10/Mines Hauler-Mutant | -9/Materials Hauler-Mutant | -9/Mines Hauler-Mutant | -9/Exiles Hauler-Mutant | -8/Mines Hauler-Mutant | -8/Materials Hauler-Mutant | -8/Garrison Hauler-Mutant | -8/Materials Resources | -11 -10 -10 -9 -9 -9 -8 -8 -8 -8 ----------- Run | Scr Mat Min Mat Min Exi Min Mat Gar Mat Matter Collected 5524 | 298 658 40 710 424 423 68 1029 1098 776 Remotely . | . . . . . . . . . . Salvage Created 5618 | 119 899 68 788 366 421 204 965 894 894 Parts 402 | 10 53 4 48 29 62 21 68 53 54 Haulers Intercepted 11 | . 2 . 3 . . . 4 . 2 Recyclers Shooed 3 | 1 2 . . . . . . . . Parts Field Recycled . | . . . . . . . . . . Retrieved Matter . | . . . . . . . . . . Parts Self-Destructed . | . . . . . . . . . . Prevented . | . . . . . . . . . . Kills | -11 -10 -10 -9 -9 -9 -8 -8 -8 -8 ------- Run | Scr Mat Min Mat Min Exi Min Mat Gar Mat Combat Hostiles Destroyed 156 | . 17 2 20 18 6 13 30 31 19 Guns 51 | . 11 . . 5 1 2 5 17 10 Cannons 50 | . 1 1 17 2 . 5 21 . 3 AOE 55 | . 5 1 3 11 5 6 4 14 6 Classes Destroyed 20 | 2 5 1 3 . 3 . 1 4 1 Worker 5 | . 1 . . . . . 2 . 2 Builder 6 | . . 1 2 1 . . 1 . 1 Tunneler 3 | 3 . . . . . . . . . Hauler 11 | . 2 . 3 . . . 4 . 2 Recycler 6 | 1 1 . 1 . . . . . 3 Mechanic 1 | . . . 1 . . . . . . Operator 1 | . 1 . . . . . . . . Turret 1 | . . . . . 1 . . . . Watcher 8 | . 1 . 3 . . . 2 1 1 Swarmer 54 | . . . 3 11 . 10 7 15 8 Saboteur 2 | . . . . . . . . 2 . Grunt 65 | . 17 2 12 5 . 3 14 7 5 Brawler 2 | . . . . . . . . 2 . Duelist 3 | . . . . . . . 2 1 . Sentry 21 | . . . 5 2 . . 7 2 5 Specialist 1 | . . . . . . . . 1 . Hunter 1 | . . . . . . . . . 1 Behemoth 1 | . . . . . . . . 1 . Zionite 8 | . . . . . 8 . . . . Assembled 5 | . . . . . 5 . . . . Best Kill Streak 10 | 3 6 3 5 5 8 4 7 10 9 Combat Bots Only 10 | . 5 2 4 4 5 4 4 10 7 Max Kills in Single Turn 5 | 2 2 2 3 3 2 3 4 5 2 Gunslinging . | . . . . . . . . . . Exploded 4 | . 2 1 1 3 2 3 3 4 2 Melee . | . . . . . . . . . . Uniques/NPCs Destroyed 4 | . . . . . 4 . . . . 8R-AWN (-9/Exiles) EX-BIN (-9/Exiles) EX-HEX (-9/Exiles) EX-DEC (-9/Exiles) Combat | -11 -10 -10 -9 -9 -9 -8 -8 -8 -8 -------- Run | Scr Mat Min Mat Min Exi Min Mat Gar Mat Damage Taken 9377 | . 907 40 797 692 908 299 1499 2744 1491 Core 1096 | . 189 . 67 116 136 27 101 282 178 Absorbed by Shields . | . . . . . . . . . . Core Remaining (%) 45 | 100 . 24 . . . 13 . . . Volleys Fired 482 | 7 85 3 61 34 13 12 98 88 81 Largest 2 | 2 2 2 2 2 1 2 2 2 2 Hottest 95 | 40 90 90 90 67 33 88 88 95 72 Shots Fired 986 | 14 165 6 118 55 88 29 190 167 154 Gun 609 | 14 159 . 9 38 75 8 50 162 94 Cannon 324 | . 1 3 105 5 . 18 138 . 54 Launcher 48 | . 5 3 4 12 8 3 2 5 6 Special 5 | . . . . . 5 . . . . Kinetic 916 | 14 155 . 113 43 75 26 188 154 148 Thermal 14 | . 5 3 1 . 5 . . . . Explosive 48 | . 5 3 4 12 8 3 2 5 6 Electromagnetic 8 | . . . . . . . . 8 . Robot Hit Streak 30 | 9 13 9 25 6 30 15 17 27 8 Robot Miss Streak 5 | 1 4 1 5 2 3 3 4 4 5 Penetration Max 1 | . . . . . . . . . 1 Secondary Targets 2 | . 1 . . . . . . 1 . Max Gunslinging Chain 1 | . 1 . . . . . . 1 . Autonomous 84 | . . . . . 75 9 . . . Shots Hit Robots 683 | 11 114 4 76 33 77 15 144 127 82 Core Hits 331 | 6 47 4 34 27 31 17 67 59 39 Critical Hits 21 | . 2 . 3 . 3 . 4 8 1 Critical Kills 5 | . 1 . . . 1 . 2 . 1 Critical Parts Destroyed 12 | . 1 . 3 . 2 . 2 4 . Melee Attacks 10 | . . . . . . . . 10 . Impact . | . . . . . . . . . . Slashing 10 | . . . . . . . . 10 . Piercing . | . . . . . . . . . . Sneak Attacks . | . . . . . . . . . . Combat Hostiles . | . . . . . . . . . . Follow-up Attacks . | . . . . . . . . . . Damage Inflicted 17058 | 119 1289 208 2042 1182 2238 831 3546 3063 2540 Guns 7426 | 119 1009 . 107 406 2008 217 550 1945 1065 Cannons 5114 | . 17 52 1540 121 . 194 2487 . 703 Explosions 4448 | . 259 156 389 655 227 420 482 1088 772 Melee 30 | . . . . . . . . 30 . Ramming 37 | . 4 . 6 . . . 27 . . Kinetic 12332 | 119 996 . 1647 527 2008 411 3037 1819 1768 Thermal 85 | . 30 52 . . 3 . . . . Explosive 4448 | . 259 156 389 655 227 420 482 1088 772 Electromagnetic 126 | . . . . . . . . 126 . Impact . | . . . . . . . . . . Slashing 30 | . . . . . . . . 30 . Piercing . | . . . . . . . . . . Highest Corruption . | . . . . . . . . . . Average Corruption . | . . . . . . . . . . Corruption Purged . | . . . . . . . . . . Overload Shots . | . . . . . . . . . . Overflow Damage 370 | . 26 . 44 23 . 37 62 45 133 Projectiles 103 | . . . 20 . . . 46 . 37 Explosions 267 | . 26 . 24 23 . 37 16 45 96 Melee . | . . . . . . . . . . Knockbacks 54 | . . . 13 . . 3 23 . 15 Impact 1 | . . . . . . . 1 . . Kinetic 49 | . . . 13 . . 3 20 . 13 Secondary 4 | . . . . . . . 2 . 2 Self-Inflicted Damage 280 | . 76 . . 97 46 39 . 22 . Shots 11 | . 3 . . 4 1 2 . 1 . Rammed 3 | . 1 . 1 . . . 1 . . Targets Rammed 4 | . 1 . 1 . . . 2 . . Kicked . | . . . . . . . . . . Crushed 1 | . . . . . . . 1 . . Highest Temperature 381 | . 30 90 194 22 . 72 225 111 381 Average Temperature 50 | . 11 47 51 8 . 26 47 19 93 Received Heat Transfer 2874 | . 474 21 357 171 . 45 657 591 558 Effects 1 | . . . . . . . . . 1 Shutdowns 1 | . . . . . . . . . 1 Siege Activations . | . . . . . . . . . . Robots Corrupted . | . . . . . . . . . . Combat Hostiles . | . . . . . . . . . . Parts Fried 3 | . . . . . . . . 3 . Impact Corruptions . | . . . . . . . . . . Robots Melted . | . . . . . . . . . . Combat Hostiles . | . . . . . . . . . . Parts Melted . | . . . . . . . . . . Heat Transferred 212 | . 74 111 . . 27 . . . . Parts Sabotaged . | . . . . . . . . . . Parts Stolen . | . . . . . . . . . . Parts Stripped . | . . . . . . . . . . Power Chain Reactions . | . . . . . . . . . . Missiles Intercepted . | . . . . . . . . . . Alert | -11 -10 -10 -9 -9 -9 -8 -8 -8 -8 ------- Run | Scr Mat Min Mat Min Exi Min Mat Gar Mat Peak Influence 1147 | 20 362 164 311 240 . 172 425 1147 906 Initial 553 | . 13 109 . 121 . . 60 255 553 Average 321 | 8 143 69 105 142 . 107 254 804 465 Maximum Alert Level 4 | . 1 . 1 1 . . 2 4 3 Low Security (%) 51 | 100 72 100 86 90 . 100 38 . 5 Level 1 21 | . 27 . 13 9 . . 48 4 52 Level 2 8 | . . . . . . . 13 19 24 Level 3 14 | . . . . . . . . 59 17 Level 4 3 | . . . . . . . . 17 . Level 5 . | . . . . . . . . . . High Security . | . . . . . . . . . . Max Security . | . . . . . . . . . . Squads Dispatched 21 | . 6 . 3 . . . 7 . 5 Investigation 5 | . 3 . 1 . . . 1 . . Extermination . | . . . . . . . . . . Reinforcement 11 | . 3 . 2 . . . 3 . 3 Assault . | . . . . . . . . . . Garrison 5 | . . . . . . . 3 . 2 Intercept . | . . . . . . . . . . Construction Impeded 1 | . . . . . . . 1 . . Haulers Reinforced . | . . . . . . . . . . Stealth | -11 -10 -10 -9 -9 -9 -8 -8 -8 -8 --------- Run | Scr Mat Min Mat Min Exi Min Mat Gar Mat Distress Signals 9 | . 1 . 4 . . . 3 . 1 Communications Jammed . | . . . . . . . . . . Distress Signals . | . . . . . . . . . . Times Spotted 244 | . 40 2 33 18 14 13 57 38 29 Peak Tracking Total 9 | . 4 2 4 4 9 4 8 6 4 Tactical Retreats 21 | . 5 . 5 . 2 1 2 4 2 Traps | -11 -10 -10 -9 -9 -9 -8 -8 -8 -8 ------- Run | Scr Mat Min Mat Min Exi Min Mat Gar Mat Traps Triggered 9 | . 2 . 1 . . . . 6 . Indirectly . | . . . . . . . . . . Trap Hack Attempts . | . . . . . . . . . . Triggered . | . . . . . . . . . . Disarmed . | . . . . . . . . . . Reprogrammed . | . . . . . . . . . . Reused 2 | . . . . . 2 . . . . Traps Extracted . | . . . . . . . . . . Installed 5 | . . 1 . . 4 . . . . Triggered 1 | . . . . 1 . . . . . Exploded 2 | . . . . . 2 . . . . Machines | -11 -10 -10 -9 -9 -9 -8 -8 -8 -8 ---------- Run | Scr Mat Min Mat Min Exi Min Mat Gar Mat Machines Disabled 24 | . 2 . 2 1 9 . 2 4 4 Max in Single Turn 2 | . 1 . 1 1 2 . 1 1 1 Garrison Relay 4 | . . . . . . . . 4 . Machines Sabotaged . | . . . . . . . . . . Garrisons Compromised . | . . . . . . . . . . Overloaded Fab Kills . | . . . . . . . . . . Fab Network Shutdowns . | . . . . . . . . . . Hacking | -11 -10 -10 -9 -9 -9 -8 -8 -8 -8 --------- Run | Scr Mat Min Mat Min Exi Min Mat Gar Mat Machines Accessed 28 | . 6 . 8 1 2 . 6 . 5 Terminals 19 | . 4 . 7 1 . . 3 . 4 Fabricators . | . . . . . . . . . . Repair Stations . | . . . . . . . . . . Recycling Units 4 | . 2 . . . . . 1 . 1 Scanalyzers 2 | . . . 1 . . . 1 . . Garrison Access 1 | . . . . . . . 1 . . Total Hacks 72 | . 17 . 24 3 2 . 12 . 14 Successful 41 | . 9 . 11 1 2 . 9 . 9 Failed 31 | . 8 . 13 2 . . 3 . 5 Catastrophic 2 | . . . . . . . . . 2 Database Lockouts . | . . . . . . . . . . Manual 29 | . 7 . 4 3 1 . 5 . 9 Terminals 58 | . 15 . 20 3 . . 7 . 13 Fabricators . | . . . . . . . . . . Repair Stations . | . . . . . . . . . . Recycling Units 4 | . 2 . . . . . 1 . 1 Scanalyzers 7 | . . . 4 . . . 3 . . Garrison Access 1 | . . . . . . . 1 . . Terminal Hacks 34 | . 7 . 11 1 2 . 5 . 8 Record 1 | . . . . . 1 . . . . Part Schematic 2 | . 2 . . . . . . . . Prototype ID Bank 7 | . 1 . 3 . . . 1 . 2 Branch Access Points 1 | . . . . . . . 1 . . Alert Level 1 | . . . 1 . . . . . . Unreport Threat 5 | . . . . . . . 1 . 4 Locate Traps 4 | . 1 . 3 . . . . . . Transport Status 2 | . . . . . . . 1 . 1 Hauler Manifests 5 | . 2 . 1 . . . 1 . 1 Registered Components 2 | . 1 . 1 . . . . . . Zone Layout 3 | . . . 2 1 . . . . . EX-Prototype ID Bank 1 | . . . . . 1 . . . . Fabricator Hacks . | . . . . . . . . . . Repair Station Hacks . | . . . . . . . . . . Recycling Unit Hacks 1 | . . . . . . . . . 1 Report Inventory 1 | . . . . . . . . . 1 Scanalyzer 2 | . . . . . . . 2 . . Insert Component 1 | . . . . . . . 1 . . Analyze 1 | . . . . . . . 1 . . Garrison Access Hacks 1 | . . . . . . . 1 . . Unlock Access 1 | . . . . . . . 1 . . Unauthorized Hacks 3 | . 2 . . . . . 1 . . Terminals . | . . . . . . . . . . Fabricators . | . . . . . . . . . . Repair Stations . | . . . . . . . . . . Recycling Units 3 | . 2 . . . . . 1 . . Tunnel 3 | . 2 . . . . . 1 . . Scanalyzers . | . . . . . . . . . . Garrison Access . | . . . . . . . . . . Data Cores Recovered 1 | . 1 . . . . . . . . Used . | . . . . . . . . . . Hacking Detections 22 | . 4 . 8 1 . . 5 . 4 Full Trace Events 1 | . . . 1 . . . . . . Feedback Events . | . . . . . . . . . . Feedback Blocked . | . . . . . . . . . . Robot Schematics Acquired . | . . . . . . . . . . Robots Built . | . . . . . . . . . . Matter . | . . . . . . . . . . Time . | . . . . . . . . . . Total Robot Build Rating . | . . . . . . . . . . Part Schematics Acquired 3 | . 2 . . . . . 1 . . Parts Built . | . . . . . . . . . . Matter . | . . . . . . . . . . Time . | . . . . . . . . . . Total Part Build Rating . | . . . . . . . . . . Parts Repaired . | . . . . . . . . . . Time . | . . . . . . . . . . Parts Recycled . | . . . . . . . . . . Recycled Matter . | . . . . . . . . . . Retrieved Matter . | . . . . . . . . . . Retrieved Components . | . . . . . . . . . . Parts Scanalyzed 1 | . . . . . . . 1 . . Part Schematics Acquired 1 | . . . . . . . 1 . . Parts Damaged . | . . . . . . . . . . Bothacking | -11 -10 -10 -9 -9 -9 -8 -8 -8 -8 ------------ Run | Scr Mat Min Mat Min Exi Min Mat Gar Mat Used RIF Installer 1 | . . . . . . . . 1 . Robots Hacked . | . . . . . . . . . . Non-combat . | . . . . . . . . . . Combat . | . . . . . . . . . . Robot Hacks Applied . | . . . . . . . . . . Relay Couplers Released 16 | . . . . . . . . 16 . Machine Destruction 16 | . . . . . . . . 16 . Robots Rewired 4 | . . . . . . . . 4 . Allies Hacked . | . . . . . . . . . . Hacks Repelled . | . . . . . . . . . . Allies | -11 -10 -10 -9 -9 -9 -8 -8 -8 -8 -------- Run | Scr Mat Min Mat Min Exi Min Mat Gar Mat Total Allies 6 | . . 1 . 1 . . . 4 . Largest Group 3 | . . 1 . 1 . . . 3 . Highest-Rated Group 114 | . . 31 . 31 . . . 114 . Highest-Rated Ally 38 | . . 31 . 31 . . . 38 . Total Orders . | . . . . . . . . . . Ally Attacks 13 | . . . . 2 . . . 11 . Total Damage 316 | . . . . 42 . . . 274 . Kills 2 | . . . . . . . . 2 . Allies Corrupted 1 | . . . . . . . . 1 . Allies Melted . | . . . . . . . . . . Intel | -11 -10 -10 -9 -9 -9 -8 -8 -8 -8 ------- Run | Scr Mat Min Mat Min Exi Min Mat Gar Mat Robot Analysis Total . | . . . . . . . . . . Derelict Logs Recovered 2 | . . 1 . 1 . . . . . Drone Launches . | . . . . . . . . . . Drone Recoveries . | . . . . . . . . . . Exploration | -11 -10 -10 -9 -9 -9 -8 -8 -8 -8 ------------- Run | Scr Mat Min Mat Min Exi Min Mat Gar Mat Turns Passed 14710 | 111 1383 798 1339 1167 4400 478 1823 2198 1013 Spaces Moved 6463 | 66 686 426 591 528 1953 182 727 876 428 Core 1 | 1 . . . . . . . . . Treads 5472 | 2 569 426 591 528 1953 182 727 494 . Legs 810 | . . . . . . . . 382 428 Wheels 180 | 63 117 . . . . . . . . Hover . | . . . . . . . . . . Flight . | . . . . . . . . . . Fastest Speed 50 | 50 100 180 180 180 180 240 200 180 122 Average Speed 194 | 101 157 181 180 197 212 240 200 200 165 Slowest Speed 320 | 160 200 200 200 200 320 240 202 245 182 Overloaded Moves . | . . . . . . . . . . Propulsion Burnouts . | . . . . . . . . . . Robots Hopped . | . . . . . . . . . . Cave-ins Triggered . | . . . . . . . . . . Exploration Rate (%) 64 | 5 93 93 52 99 92 43 64 67 32 Regions Visited 9 Branch Regions 4 Pre-discovered Areas 4 | . 2 . . . 1 . 1 . . Known Exits Taken 1 | . . . . . . . 1 . . Unknown Exits Taken 7 | 1 1 1 1 1 1 1 . . . Scrap Searched 3 | . . 1 . 1 . 1 . . . Spaces Dug 63 | . . . . 14 . 37 1 . 11 Terrain Destroyed 445 | . 25 28 54 86 79 44 30 29 70 Melee . | . . . . . . . . . . Projectile 77 | . . . 17 . 19 8 16 . 17 AOE 368 | . 25 28 37 86 60 36 14 29 53 Terrain Rammed . | . . . . . . . . . . Walls Destroyed . | . . . . . . . . . . Machines Disabled . | . . . . . . . . . . Actions | -11 -10 -10 -9 -9 -9 -8 -8 -8 -8 --------- Run | Scr Mat Min Mat Min Exi Min Mat Gar Mat Total 7818 | 96 845 447 752 600 2203 202 921 1159 593 Wait 250 | 3 28 6 46 18 57 2 45 37 8 Move 6453 | 65 685 425 590 527 1952 181 726 874 428 Hop . | . . . . . . . . . . Pick Up 278 | 12 19 6 19 9 91 . 20 60 42 Fast Attach 40 | 5 4 . 8 1 7 . 2 8 5 Attach 46 | 2 3 1 2 3 14 2 3 13 3 Detach 7 | . . . . . 6 . . 1 . Swap 58 | . 6 . 6 6 4 4 6 19 7 Drop 160 | 2 14 5 19 2 55 1 19 24 19 Fire 482 | 7 85 3 61 34 13 12 98 88 81 Melee 10 | . . . . . . . . 10 . Ram . | . . . . . . . . . . Kick . | . . . . . . . . . . Crush 4 | . 1 . 1 . . . 2 . . Escape Stasis 7 | . . . . . . . . 7 . Rewire 18 | . . . . . . . . 18 . Trap 5 | . . 1 . . 4 . . . . Miscellaneous . | . . . . . . . . . . Route ------- -11/Scrapyard -10/Materials (discovered 4 exits: *Mat x3 / [*Min]) -10/Mines (discovered 2 exits: *Mat x2) -9/Materials (discovered 3 exits: *Mat / *Min / [*Sto]) -9/Mines (discovered 4 exits: *Mat x2 / *Exi / [*Zio]) -9/Exiles -8/Mines -8/Materials (discovered 3 exits: [*Fac x2] / Gar) -8/Garrison (discovered 2 exits: *Mat x2) -8/Materials (discovered 1 exit: [*Fac]) History --------- Turn | Location | Event 15 | -11/Scrapyard | Discovered new exit (range 14) 112 | -11/Scrapyard | Entered Materials 271 | -10/Materials | Discovered new exit (range 15) 310 | -10/Materials | Build established: Mutant 478 | -10/Materials | Discovered new exit (range 16) 525 | -10/Materials | Core integrity fell below 50% 1021 | -10/Materials | Discovered new exit (range 5) 1439 | -10/Materials | Discovered new exit (range 4) 1495 | -10/Materials | Entered Mines 1519 | -10/Mines | Met a Derelict bent on vengeance 1553 | -10/Mines | Learned Materials emergency access door positions 1675 | -10/Mines | Discovered new exit (range 8) 1693 | -10/Mines | Found a hidden stash of uninstalled traps 1838 | -10/Mines | Received a Mining Laser from a helpful Derelict 1976 | -10/Mines | Discovered new exit (range 12) 2146 | -10/Mines | A weapon hastily lodged in a ceiling crevice suddenly fell to the ground 2293 | -10/Mines | Entered Materials 2293 | -9/Materials | Evolved 2 slots: Utility x2 2374 | -9/Materials | Discovered new exit (range 12) 2777 | -9/Materials | Discovered new exit (range 8) 3042 | -9/Materials | Build established: Hauler-Mutant 3506 | -9/Materials | Discovered new exit (range 13) 3632 | -9/Materials | Entered Mines 3758 | -9/Mines | Found a damaged Exp. Sensor Array with a note attached 3762 | -9/Mines | Found Prototype Device 3794 | -9/Mines | Escorted by a lone wolf Derelict 3870 | -9/Mines | A Derelict revealed a hidden shortcut to a safe place 4025 | -9/Mines | Discovered new exit (range 14) 4296 | -9/Mines | Discovered new exit (range 13) 4487 | -9/Mines | Learned location of 1 exit from Lower Caves 4735 | -9/Mines | Received a Rocket Launcher from a helpful Derelict 4791 | -9/Mines | Deemed a non-threat by the Exiles lab entrance 4791 | -9/Mines | Discovered new exit (range 5) 4799 | -9/Mines | Entered Exiles 4845 | -9/Exiles | Met 8R-AWN 4881 | -9/Exiles | Met EX-HEX 4969 | -9/Exiles | Met EX-DEC 5167 | -9/Exiles | Discovered new exit (range 14) 5834 | -9/Exiles | Visited The Gauntlet 6345 | -9/Exiles | Learned location of Zion (-7) 6941 | -9/Exiles | Met EX-BIN 6965 | -9/Exiles | Aligned with FarCom system 6967 | -9/Exiles | Given EX-Vault access code 7023 | -9/Exiles | Opened EX-Vault 7033 | -9/Exiles | Found Superbattery 7042 | -9/Exiles | Found AWS/Gauss 7045 | -9/Exiles | Found Flying Fortress v7 7086 | -9/Exiles | Warned to stay clear of 0b10 Research branches 7204 | -9/Exiles | Attacked by the Exiles 7245 | -9/Exiles | Core integrity fell below 50% 7350 | -9/Exiles | Destroyed 8R-AWN 7355 | -9/Exiles | Found Prototype Processor 7362 | -9/Exiles | Found Prototype Ballistic Gun 7365 | -9/Exiles | Found Prototype Protection 7367 | -9/Exiles | Lost 3 parts (1n2u) 7367 | -9/Exiles | Identified 8R-AWN's Armor/EX 7743 | -9/Exiles | Destroyed EX-BIN 7758 | -9/Exiles | Destroyed EX-HEX 7769 | -9/Exiles | Destroyed EX-DEC 7826 | -9/Exiles | Identified 8R-AWN's Boregun 7846 | -9/Exiles | Found Deploy-a-Sentry 8786 | -9/Exiles | Identified Exp. Sensor Array 9199 | -9/Exiles | Stole four prototypes: AWS/Gauss, Flying Fortress v7, Superbattery, Deploy-a-Sentry 9199 | -9/Exiles | Entered Mines 9391 | -8/Mines | Core integrity fell below 20% 9627 | -8/Mines | Discovered new exit (range 7) 9677 | -8/Mines | Entered Materials 9677 | -8/Materials | Evolved 2 slots: Propulsion x2 9888 | -8/Materials | Discovered new exit (range 8) 10102 | -8/Materials | Discovered new exit (range 16) 11188 | -8/Materials | Garrison activated, responded to threat 11415 | -8/Materials | Identified exit to Garrison 11500 | -8/Materials | Entered Garrison 11578 | -8/Garrison | Triggered checkpoint 11622 | -8/Garrison | Destroyed 10 combat bots 12147 | -8/Garrison | Discovered new exit (range 11) 12182 | -8/Garrison | Installed Relay Interface Framework 12292 | -8/Garrison | Triggered checkpoint 12353 | -8/Garrison | Garrison Relay disabled 12720 | -8/Garrison | Triggered checkpoint 12771 | -8/Garrison | Garrison Relay disabled 12803 | -8/Garrison | Triggered checkpoint 12849 | -8/Garrison | Core integrity fell below 50% 12886 | -8/Garrison | Lost 3 parts (1n2w) 12953 | -8/Garrison | Garrison Relay disabled 13151 | -8/Garrison | Triggered checkpoint 13304 | -8/Garrison | Triggered checkpoint 13318 | -8/Garrison | Garrison Relay disabled 13401 | -8/Garrison | Discovered new exit (range 8) 13474 | -8/Garrison | Spotted B-75 Beast 13524 | -8/Garrison | Lost 3 parts (2n1w) 13526 | -8/Garrison | Destroyed B-75 Beast 13698 | -8/Garrison | Entered Materials 13971 | -8/Materials | Destroyed 7 combat bots 14435 | -8/Materials | Discovered new exit (range 3) 14531 | -8/Materials | Garrison activated, responded to threat 14600 | -8/Materials | Core integrity fell below 20% 14711 | -8/Materials | Destroyed by G-47 Trooper with Particle Gun Last Messages --------------- 14695_ Penetrated by Slug. 14695_ Carbon-fiber Leg destroyed. 14696_ U-05 Engineer lays Concrete. 14697_ Dropped Hcp. Matter Pod. 14698_ Extracted 200 matter. 14698_ Penetrated by Slug. 14698_ Imp. Carbon-fiber Leg destroyed. 14699_ U-05 Engineer lays Concrete. 14699_ Destroyed Particle Gun. 14699_ G-47 Trooper knocked back. 14701_ U-05 Engineer builds a Wall. 14701_ Slug penetrates Wall. 14702_ Acquired Hcp. Matter Pod. 14704_ Slug penetrates Wall. 14704_ K-01 Serf collects debris. 14706_ U-05 Engineer builds a Wall. 14707_ Slug penetrates Wall. 14710_ U-05 Engineer builds a Wall. 14710_ G-47 Trooper knocked back. 14711_ Power failure, Rnf. Deuterium Engine shutdown. Map ----- +----------------------------------------------------+ | ?????????????????????????????????????????? | | ?????????????????????????????????????????? | | ?????????????????????????????????????????? | | ?????????????????????????????????????????? | | ?????????????????????????????????????????? | | ?????????????????????????????????????????? | | ?????????????????????????????????????????? | | ?????????????????????????????????????????? | | ?????????????????????????????????????????? | | ?????????????????????????????????????????? | | ????????????+##??????????????????????????? | | ???????????? ??????????????????????????? | | ???????????? ??????????????????????????? | | ????????????# ??????????????????????????? | | ????????????# ####?#####????????????????? | | ?????# ????" # /#????????????????? | | ?????# ???# # """ #????????????????? | | ?????? ""?# " "G" !#????????????????? | | ???????? ""?# " " ! #????????????????? | | ????????? # #????????????????? | | ?????????? # ?????????????????? | | ???????????# = % ?????????????????? | | ????????????# *%= ??????????????????? | | ????????????# % ??????????????????? | | ??????????### ##;##########??????????????? | | ????????### #u@ #??????????????? | | ????????# # #??????????????? | | ????????# = [; "" #??????????????? | | ????????# =g T" #??????????????? | | ????????# "T # "" #??????????????? | | ????????# "" #??????????????? | | ????????# ########## | | ????????### # " | | ??????????###### ########? | | ???????????????# #???????? | | ???????????????# r###############???????? | | ???????????????# #???????##????????????? | | ???????????????# ########[#????????????? | | ???????????????# # ** !#????????????? | | ???????????????# # * =!*#????????????? | | ???????????????# # = #????????????? | | ???????????????# # #????????????? | | ???????????????# + #????????????? | | ???????????????# # " """ #????????????? | | ???????????????# # T """ #????????????? | | ???????????##### # " """ #????????????? | | ???????????# # #????????????? | | ???????????# < ##########????????????? | | ???????????# #?????????????????????? | | ???????????####/####?????????????????????? | +----------------------------------------------------+ Best States ------------- Heat Dissipation 31 Coolant Potential 50 Energy Generation 16 Energy Capacity 290 Matter Stores 300 Matter Capacity 300 Sight Range 16 Terrain Scan Density 10 Additional Mass Support 12 Armor Coverage 1000 Resistance: EX 90 Utility Shielding 33 Evasion (%) 40 Recoil Reduction 4 Item Schematics ----------------- Hcp. Storage Unit | -10/Materials | Hacked Lrg. Storage Unit | -10/Materials | Hacked Gravity Neutralizing Apparatus | -8/Materials | Scanalyzed Robot Schematics ------------------ None Fabricated ------------ Nothing Alien Tech Used ----------------- None Achievements -------------- None Challenges ------------ None Game ------ Seed DiametricCooledNukerbomber Manual? 0 Play Time 01:37:44 Cumulative 188.7 hours Start 2020.09.28 @ 12:58:14 End 2020.09.28 @ 16:02:45 Sessions 1 Manual Loads 0 Difficulty Rogue Special Mode None Game No. 212 Rogue 212 Adventurer 0 Explorer 0 Win Type - Total 2 Types 2/0/0/0/0/0/0/0/0 Lore% 61 Gallery% 74 Achievement% 56 Wizard Run 0 Options --------- ASCII 0 Keyboard 0 Movement Numpad Keybinds 0 Fullscreen 2 Font 24/Smallcaps Map View 76x50 Tactical HUD 1 Map Filters NONE Filters NONE Steam 1 RUN: aad4789c-bb5c-4487-ba03-64eedb439ed3